bitfinex/quotes_BTCUSD_20230114
["timestamp","ask_amount","ask_price","bid_price","bid_amount"]
[1673685782227,0.36960817,21004.0,21003.0,0.14080159]
[1673685782479,0.26100817,21004.0,21003.0,0.35270036]
[1673685782723,0.26100817,21004.0,21003.0,0.35170036]
[1673685782724,0.25700817,21004.0,21003.0,0.35170036]
[1673685783007,0.2571315,21004.0,21003.0,0.43170036]
[1673685783260,0.25700817,21004.0,21003.0,0.14080159]
[1673685783511,0.13600817,21004.0,21003.0,0.14180159]
[1673685783764,0.13200817,21004.0,21003.0,0.14080159]
[1673685784007,0.13200817,21004.0,21002.0,0.56907592]
[1673685784258,0.1321315,21004.0,21003.0,0.08]
[1673685784757,0.13016136,21005.0,21003.0,0.53536305]
[1673685784966,0.13016136,21005.0,21004.0,0.14085034]
[1673685785249,0.13016136,21005.0,21003.0,0.59621339]
[1673685785491,0.13016136,21005.0,21003.0,0.77621339]
[1673685785758,0.13028469,21005.0,21003.0,0.38531462]
[1673685786006,0.13028469,21005.0,21003.0,0.46531462]
[1673685786007,0.13016136,21005.0,21003.0,0.46531462]
[1673685786508,0.35306761,21005.0,21003.0,0.46531462]
[1673685786749,0.32103333,21004.0,21003.0,0.32446428]
[1673685786994,0.35306761,21005.0,21003.0,0.32446428]
[1673685787250,0.33610625,21005.0,21003.0,0.46531462]
[1673685787496,0.32091,21004.0,21003.0,0.32446428]
[1673685787747,0.33610625,21005.0,21003.0,0.46531462]
[1673685787996,0.33622958,21005.0,21003.0,0.24446428]
[1673685788252,0.32091,21004.0,21003.0,0.32446428]
[1673685788497,0.33610625,21005.0,21003.0,0.46531462]
[1673685788761,0.32091,21004.0,21003.0,0.46531462]
[1673685789024,0.32091,21004.0,21003.0,0.38531462]
[1673685789271,0.32091,21004.0,21003.0,0.32446428]
[1673685789518,0.32091,21004.0,21003.0,0.24446428]
[1673685789774,0.32091,21004.0,21003.0,0.32446428]
[1673685791031,0.35605901,21005.0,21003.0,0.32446428]
[1673685791278,0.320906,21004.0,21003.0,0.32446428]
[1673685791771,0.54830286,21004.0,21003.0,0.08]
[1673685792785,0.66150286,21004.0,21003.0,0.08]
[1673685795765,0.434106,21004.0,21003.0,0.08]
[1673685796013,0.1132,21004.0,21003.0,0.08]
[1673685796257,0.1132,21004.0,21003.0,0.29646175]
[1673685797002,0.1132,21004.0,21003.0,0.08]
[1673685797244,0.64256199,21004.0,21003.0,0.08]
[1673685797498,0.32165599,21004.0,21003.0,0.08]
[1673685797742,0.64256199,21004.0,21003.0,0.08]
[1673685798300,0.32165599,21004.0,21003.0,0.08]
[1673685798549,0.434106,21004.0,21003.0,0.08]
[1673685799563,0.43422933,21004.0,21003.0,0.08]
[1673685799812,0.434106,21004.0,21003.0,0.08]
[1673685800569,0.43422933,21004.0,21003.0,0.08]
[1673685800829,0.68712195,21004.0,21003.0,0.08]
[1673685801105,0.68699862,21004.0,21003.0,0.08]
[1673685801628,0.68712195,21004.0,21003.0,0.08]
[1673685802411,0.68699862,21004.0,21003.0,0.08]
[1673685802626,0.68712195,21004.0,21003.0,0.08]
[1673685802896,0.68699862,21004.0,21001.0,0.6034386]
[1673685803125,0.36609262,21004.0,21003.0,0.012]
[1673685803640,0.68699862,21004.0,21003.0,0.012]
[1673685804117,0.36609262,21004.0,21003.0,0.012]
[1673685804623,0.1132,21004.0,21003.0,0.15443]
[1673685804862,0.1132,21004.0,21003.0,0.38979773]
[1673685805113,0.1126,21007.0,21003.0,0.75940234]
[1673685805353,0.36679491,21007.0,21003.0,1.18627955]
[1673685805611,0.26589957,21006.0,21003.0,1.18627955]
[1673685805856,0.26589957,21006.0,21003.0,0.9955536]
[1673685806592,0.00012333,21005.0,21003.0,0.5194316]
[1673685806835,0.26589957,21006.0,21003.0,0.5314316]
[1673685807328,0.23060415,21005.0,21003.0,0.24815126]
[1673685807580,0.23060415,21005.0,21003.0,0.23615126]
[1673685807833,0.24317752,21006.0,21004.0,0.25592636]
[1673685808073,0.1129,21005.0,21002.0,0.35837655]
[1673685808315,0.29261646,21005.0,21003.0,0.012]
[1673685808549,0.1129,21005.0,21003.0,0.012]
[1673685808814,0.320906,21004.0,21003.0,0.012]
[1673685809064,0.1129,21005.0,21002.0,0.21752621]
[1673685809296,0.1129,21005.0,21003.0,0.012]
[1673685810078,0.1129,21005.0,21002.0,0.35837655]
[1673685810329,0.36412114,21005.0,21002.0,0.44037655]
[1673685810573,0.36412114,21005.0,21002.0,0.56927532]
[1673685810826,0.36412114,21005.0,21003.0,0.012]
[1673685811300,0.36412114,21005.0,21003.0,0.27729045]
[1673685811786,0.36412114,21005.0,21003.0,0.41814079]
[1673685812529,0.30205394,21007.0,21004.0,0.14085034]
[1673685812781,0.30205394,21007.0,21004.0,0.33157629]
[1673685813097,0.1134,21007.0,21005.0,0.25155881]
[1673685813347,0.31611734,21007.0,21006.0,0.134484]
[1673685813594,0.31611734,21007.0,21005.0,0.39240915]
[1673685813868,0.32311734,21007.0,21005.0,0.39240915]
[1673685814117,0.31611734,21007.0,21005.0,0.39240915]
[1673685814360,0.32311734,21007.0,21005.0,0.40040915]
[1673685815134,0.1204,21007.0,21005.0,0.40040915]
[1673685815383,0.007,21007.0,21005.0,0.40040915]
[1673685815620,0.007,21007.0,21006.0,0.2585793]
[1673685815873,0.007,21007.0,21006.0,0.25849505]
[1673685816117,0.007,21007.0,21006.0,0.53382339]
[1673685816365,0.007,21007.0,21006.0,0.25849505]
[1673685816613,0.2540602,21008.0,21006.0,0.25849505]
[1673685816860,0.007,21007.0,21006.0,0.26849505]
[1673685817842,0.007,21007.0,21006.0,0.40297305]
[1673685818100,0.007,21007.0,21006.0,1.78053633]
[1673685818370,0.007,21007.0,21006.0,2.89501208]
[1673685818620,0.007,21007.0,21006.0,1.80310419]
[1673685818865,0.007,21007.0,21006.0,2.12552515]
[1673685819113,0.01869648,21010.0,21006.0,2.35774482]
[1673685819363,0.01869648,21010.0,21007.0,0.27569913]
[1673685819618,0.01869648,21010.0,21007.0,0.33195708]
[1673685819874,0.01869648,21010.0,21008.0,0.710469]
[1673685820121,0.01869648,21010.0,21009.0,0.1]
[1673685820365,0.01869648,21010.0,21009.0,0.710438]
[1673685820849,0.01869648,21010.0,21009.0,1.17440707]
[1673685821110,0.01869648,21010.0,21009.0,1.12562301]
[1673685821363,0.01869648,21010.0,21009.0,1.45055596]
[1673685821624,0.01869648,21010.0,21009.0,0.87788906]
[1673685822131,0.02569648,21010.0,21009.0,0.97888906]
[1673685822634,0.02569648,21010.0,21009.0,0.87888906]
[1673685823126,0.02569648,21010.0,21009.0,0.97888906]
[1673685823365,0.02569648,21010.0,21009.0,0.87888906]
[1673685824886,0.34882071,21010.0,21009.0,0.001]
[1673685825907,0.66985004,21010.0,21009.0,0.001]
[1673685826162,0.34882071,21010.0,21009.0,0.001]
[1673685826665,0.02569648,21010.0,21009.0,0.476986]
[1673685826908,0.02569648,21010.0,21009.0,0.236586]
[1673685827400,0.02569648,21010.0,21009.0,0.86857734]
[1673685827647,0.02569648,21010.0,21009.0,0.611436]
[1673685827904,0.02569648,21010.0,21009.0,0.96260064]
[1673685828165,0.02569648,21010.0,21009.0,0.86260064]
[1673685828409,0.02549668,21010.0,21009.0,0.38661464]
[1673685829223,0.02549668,21010.0,21009.0,1.19296558]
[1673685829438,0.02549668,21010.0,21009.0,0.96260064]
[1673685829684,0.02549668,21010.0,21009.0,1.29310797]
[1673685830416,0.02549668,21010.0,21009.0,0.96260064]
[1673685831132,0.02549668,21010.0,21009.0,0.86260064]
[1673685831380,0.02549668,21010.0,21009.0,0.85017056]
[1673685832601,0.02549668,21010.0,21009.0,0.611436]
[1673685832873,0.02549668,21010.0,21009.0,1.04194333]
[1673685833110,0.02549668,21010.0,21009.0,1.94323494]
[1673685833357,0.02549668,21010.0,21009.0,2.05663494]
[1673685833626,0.02549668,21010.0,21009.0,1.43095204]
[1673685833850,0.02549668,21010.0,21009.0,1.94281034]
[1673685834102,0.02549668,21010.0,21009.0,1.95842427]
[1673685834338,0.02549668,21010.0,21009.0,1.74656597]
[1673685834602,0.02549668,21010.0,21009.0,1.6946025]
[1673685834849,0.02549668,21010.0,21009.0,1.80608297]
[1673685835095,0.02549668,21010.0,21009.0,3.12394526]
[1673685836226,0.02549668,21010.0,21009.0,2.77251426]
[1673685836487,0.02549668,21010.0,21009.0,3.24971595]
[1673685836718,0.02349668,21010.0,21009.0,3.37371595]
[1673685836962,0.02349668,21010.0,21009.0,3.24871595]
[1673685836963,0.01849668,21010.0,21009.0,3.24871595]
[1673685837222,0.02349668,21010.0,21009.0,3.64623862]
[1673685837717,0.01922263,21011.0,21009.0,3.64623862]
[1673685837718,0.01922263,21011.0,21010.0,0.02349]
[1673685838000,0.01922263,21012.0,21011.0,0.1]
[1673685838224,0.01940883,21013.0,21011.0,2.08125123]
[1673685838480,0.01940883,21013.0,21012.0,1.42479167]
[1673685838720,0.01940883,21014.0,21013.0,0.1]
[1673685838970,0.21855831,21022.0,21013.0,1.75609128]
[1673685839216,0.23165979,21021.0,21014.0,1.15273606]
[1673685839465,0.39687826,21020.0,21014.0,4.38825709]
[1673685839733,0.25318451,21018.0,21014.0,5.56651119]
[1673685839989,0.22157882,21017.0,21014.0,2.086153]
[1673685840265,0.22157882,21017.0,21014.0,1.086153]
[1673685840488,0.25351345,21016.0,21014.0,0.61028]
[1673685840751,0.25824592,21015.0,21011.0,0.3511054]
[1673685840999,0.51574357,21014.0,21011.0,0.21471282]
[1673685841266,0.29231646,21014.0,21011.0,0.21471282]
[1673685841536,0.19510416,21013.0,21011.0,0.21471282]
[1673685842294,0.25540231,21015.0,21011.0,0.21471282]
[1673685842545,0.25540231,21015.0,21011.0,1.02182586]
[1673685842807,0.005,21013.0,21011.0,1.14182586]
[1673685843143,0.25540231,21015.0,21011.0,0.83109991]
[1673685843437,0.005,21013.0,21011.0,0.69064982]
[1673685843685,0.005,21013.0,21011.0,0.12]
[1673685843686,0.49177012,21013.0,21011.0,0.12]
[1673685843927,0.1125,21012.0,21011.0,0.12]
[1673685844197,0.19119891,21012.0,21011.0,0.12]
[1673685844442,0.00012333,21014.0,21011.0,0.12]
[1673685844692,0.24204189,21012.0,21011.0,0.12]
[1673685844938,0.35484189,21012.0,21011.0,0.12]
[1673685845188,1.15166589,21012.0,21008.0,0.23317906]
[1673685845435,0.475918,21012.0,21011.0,0.111]
[1673685845677,1.327914,21012.0,21006.0,0.41296711]
[1673685845945,0.1132,21007.0,21006.0,0.41296711]
[1673685846199,0.434106,21007.0,21006.0,0.41296711]
[1673685846464,0.11332333,21007.0,21006.0,0.210356]
[1673685846713,0.26619435,21007.0,21006.0,0.210356]
[1673685847029,0.37959435,21007.0,21006.0,0.267356]
[1673685847243,0.70062368,21007.0,21006.0,0.267356]
[1673685847731,1.17665468,21007.0,21006.0,0.267356]
[1673685847974,0.91046033,21007.0,21006.0,0.210356]
[1673685848218,1.54613285,21007.0,21006.0,0.210356]
[1673685848464,1.29990467,21007.0,21006.0,0.210356]
[1673685848720,1.43786033,21007.0,21006.0,0.210356]
[1673685848960,1.42386033,21007.0,21006.0,0.210356]
[1673685849209,1.50086033,21007.0,21006.0,0.219356]
[1673685849470,1.50086033,21007.0,21006.0,0.219416]
[1673685849719,1.71255757,21007.0,21006.0,0.219416]
[1673685849958,1.02386033,21007.0,21006.0,0.21025739]
[1673685850200,1.88656202,21007.0,21006.0,0.21925739]
[1673685850449,1.88656202,21007.0,21006.0,0.21919739]
[1673685850913,1.30213329,21007.0,21006.0,0.21919739]
[1673685851201,1.60213329,21007.0,21006.0,0.21919739]
[1673685851451,1.40086033,21007.0,21006.0,0.21919739]
[1673685851687,1.70916533,21007.0,21006.0,0.21919739]
[1673685851925,1.50086033,21007.0,21006.0,0.21919739]
[1673685852161,1.3347862,21007.0,21006.0,0.21919739]
[1673685852657,1.5347862,21007.0,21006.0,0.21919739]
[1673685852911,2.34805414,21007.0,21006.0,0.21919739]
[1673685853147,1.60086033,21007.0,21006.0,0.21919739]
[1673685853424,1.80199293,21007.0,21006.0,0.21919739]
[1673685853669,0.597906,21007.0,21006.0,0.21919739]
[1673685853924,0.597906,21007.0,21006.0,0.45970011]
[1673685854176,0.277,21007.0,21006.0,0.45970011]
[1673685854724,0.277,21007.0,21006.0,0.59417811]
[1673685854912,0.276702,21007.0,21006.0,0.59417811]
[1673685855156,0.27,21007.0,21006.0,0.59517811]
[1673685855402,0.27,21007.0,21006.0,0.64467539]
[1673685855403,0.2,21007.0,21006.0,0.64467539]
[1673685855656,0.2,21007.0,21006.0,0.69956718]
[1673685855657,0.206,21007.0,21006.0,0.69956718]
[1673685856158,0.2,21007.0,21006.0,0.58556718]
[1673685856405,0.206,21007.0,21006.0,0.72201032]
[1673685856643,0.206,21007.0,21006.0,0.55867539]
[1673685857129,0.206,21007.0,21006.0,1.47517948]
[1673685857380,0.2,21007.0,21006.0,0.92072939]
[1673685857633,0.206,21007.0,21006.0,1.17517948]
[1673685858132,0.206,21007.0,21006.0,1.30044318]
[1673685858389,0.206,21007.0,21006.0,1.1631409]
[1673685858641,0.206,21007.0,21006.0,0.5526089]
[1673685858886,0.206,21007.0,21006.0,1.1631409]
[1673685859660,0.206,21007.0,21006.0,1.03459619]
[1673685859908,0.206,21007.0,21006.0,1.22267534]
[1673685860390,0.206,21007.0,21006.0,1.33459619]
[1673685860648,0.206,21007.0,21006.0,1.79910159]
[1673685861176,0.206,21007.0,21006.0,1.58844628]
[1673685861431,0.206,21007.0,21006.0,1.6586515]
[1673685861676,0.206,21007.0,21006.0,1.79925651]
[1673685861925,0.206,21007.0,21006.0,1.6586515]
[1673685862420,0.206,21007.0,21006.0,1.93952525]
[1673685862665,0.206,21007.0,21006.0,1.69831737]
[1673685862917,0.206,21007.0,21006.0,1.48766206]
[1673685863158,0.206,21007.0,21006.0,1.38766206]
[1673685863656,0.206,21007.0,21006.0,1.24705183]
[1673685865193,0.206,21007.0,21006.0,1.04799619]
[1673685865440,0.206,21007.0,21006.0,1.3347796]
[1673685865687,0.206,21007.0,21006.0,1.19416937]
[1673685865937,0.206,21007.0,21006.0,1.30756937]
[1673685866432,0.206,21007.0,21006.0,1.19416937]
[1673685866935,0.206,21007.0,21006.0,0.93374976]
[1673685867172,0.206,21007.0,21006.0,1.17051382]
[1673685867420,0.206,21007.0,21006.0,1.47051382]
[1673685867662,0.206,21007.0,21006.0,1.33374976]
[1673685868383,0.206,21007.0,21006.0,1.47435999]
[1673685868877,0.206,21007.0,21006.0,1.65844107]
[1673685869131,0.206,21007.0,21006.0,1.91117795]
[1673685869402,0.206,21007.0,21006.0,7.86336888]
[1673685869664,0.206,21007.0,21006.0,7.19234324]
[1673685869919,0.206,21007.0,21006.0,7.05214317]
[1673685870418,0.206,21007.0,21006.0,6.84125105]
[1673685870655,0.206,21007.0,21006.0,8.14452935]
[1673685870910,0.206,21007.0,21006.0,7.86336406]
[1673685871158,0.206,21007.0,21006.0,6.86336406]
[1673685871897,0.206,21007.0,21006.0,6.19232601]
[1673685872645,0.206,21007.0,21006.0,5.81054696]
[1673685872892,0.206,21007.0,21006.0,5.58632261]
[1673685873141,0.206,21007.0,21006.0,5.57648383]
[1673685873392,0.206,21007.0,21006.0,5.3754605]
[1673685873714,0.206,21007.0,21006.0,5.58632261]
[1673685874702,0.206,21007.0,21006.0,5.72689593]
[1673685874951,0.206,21007.0,21006.0,5.44574787]
[1673685875202,0.206,21007.0,21006.0,5.58635344]
[1673685875452,0.206,21007.0,21006.0,5.44574787]
[1673685875724,0.206,21007.0,21006.0,5.58635621]
[1673685875980,0.206,21007.0,21006.0,5.44574787]
[1673685876229,0.206,21007.0,21006.0,5.58635535]
[1673685876738,0.18262669,21007.0,21006.0,5.95369593]
[1673685876979,0.18262669,21007.0,21006.0,5.74283382]
[1673685877221,0.18262669,21007.0,21006.0,6.7649809]
[1673685877719,0.18262669,21007.0,21006.0,6.41388871]
[1673685877958,0.18262669,21007.0,21006.0,6.21502695]
[1673685878444,0.18262669,21007.0,21006.0,6.32762695]
[1673685878697,0.18262669,21007.0,21006.0,6.80482864]
[1673685879909,0.17662669,21007.0,21006.0,6.69082864]
[1673685880161,0.0179569,21014.0,21007.0,0.1]
[1673685880417,0.0179569,21014.0,21011.0,0.35178748]
[1673685880656,0.0179569,21014.0,21012.0,0.52023944]
[1673685880911,0.0179569,21014.0,21012.0,1.63764744]
[1673685881198,0.0179569,21014.0,21013.0,0.134415]
[1673685881466,0.0179569,21014.0,21013.0,0.96392499]
[1673685881713,0.0179569,21014.0,21013.0,1.26392499]
[1673685881976,0.0179569,21014.0,21013.0,1.36206909]
[1673685882214,0.0179569,21014.0,21013.0,1.36206805]
[1673685882467,0.0179569,21014.0,21013.0,1.1509966]
[1673685882718,0.0179569,21014.0,21013.0,1.45006909]
[1673685883213,0.0179569,21014.0,21013.0,1.5041485]
[1673685883467,0.0179569,21014.0,21013.0,1.45006909]
[1673685883970,0.0179569,21014.0,21013.0,1.45000733]
[1673685884221,0.0179569,21014.0,21013.0,1.45001404]
[1673685884465,0.0179569,21014.0,21013.0,1.59081247]
[1673685884711,0.0179569,21014.0,21013.0,1.23887754]
[1673685884964,0.0179569,21014.0,21013.0,1.44995003]
[1673685885253,0.0179569,21014.0,21013.0,1.68237237]
[1673685885521,0.0179569,21014.0,21013.0,1.47129988]
[1673685885751,0.0179569,21014.0,21013.0,1.07129988]
[1673685886034,0.0179569,21014.0,21013.0,1.23073234]
[1673685886244,0.0179569,21014.0,21013.0,1.13887754]
[1673685886494,0.0179569,21014.0,21013.0,1.22847727]
[1673685886745,0.0179569,21014.0,21013.0,1.36904481]
[1673685887237,0.0179569,21014.0,21013.0,1.6801173]
[1673685887496,0.0179569,21014.0,21013.0,1.44995003]
[1673685887746,0.0129569,21014.0,21013.0,1.59045323]
[1673685887994,0.0129569,21014.0,21013.0,1.73152746]
[1673685888491,0.0129569,21014.0,21013.0,2.40199448]
[1673685888984,0.0129569,21014.0,21013.0,2.68294918]
[1673685889756,0.0129569,21014.0,21013.0,2.51529448]
[1673685890000,0.0129569,21014.0,21013.0,2.51469268]
[1673685890247,0.0129569,21014.0,21013.0,2.64070869]
[1673685890490,0.01976554,21015.0,21013.0,2.64070869]
[1673685890763,0.01976554,21015.0,21014.0,2.05509869]
[1673685891005,0.01976554,21017.0,21015.0,0.1]
[1673685891236,0.01976554,21017.0,21016.0,3.42090985]
[1673685891476,0.01976554,21017.0,21016.0,3.50426669]
[1673685892202,0.01976554,21017.0,21016.0,3.05863427]
[1673685892451,0.01476554,21017.0,21016.0,3.37811111]
[1673685892698,0.01476554,21017.0,21016.0,3.8553128]
[1673685892948,0.01476554,21017.0,21016.0,3.64226669]
[1673685893197,0.01476554,21017.0,21016.0,4.20846391]
[1673685893446,0.01,21019.0,21017.0,0.1]
[1673685893699,0.01,21019.0,21018.0,3.08294469]
[1673685893942,0.0023795,21019.0,21018.0,3.54767709]
[1673685894190,0.0023795,21019.0,21018.0,7.54767709]
[1673685894436,0.0023795,21019.0,21018.0,7.96883021]
[1673685894682,0.01830775,21021.0,21019.0,0.1]
[1673685894938,0.01830775,21021.0,21020.0,2.96970969]
[1673685895189,0.01830775,21021.0,21020.0,4.09074374]
[1673685895459,0.00088267,21022.0,21021.0,0.1]
[1673685895716,0.01830775,21024.0,21021.0,1.24846263]
[1673685895962,0.01830775,21024.0,21023.0,0.4637769]
[1673685896222,0.01830775,21024.0,21023.0,1.7022739]
[1673685896223,0.01330775,21024.0,21023.0,1.7022739]
[1673685896464,0.01330775,21024.0,21023.0,7.913225]
[1673685896735,0.01330775,21024.0,21023.0,8.74082541]
[1673685896969,0.01330775,21024.0,21023.0,9.17867351]
[1673685897208,0.01330775,21024.0,21023.0,8.82827479]
[1673685897702,0.01330775,21024.0,21023.0,8.85983573]
[1673685898210,0.01330775,21024.0,21023.0,9.20972952]
[1673685898467,0.18105558,21026.0,21024.0,0.30054735]
[1673685898737,0.00133912,21026.0,21024.0,0.44996215]
[1673685898992,0.00133912,21026.0,21025.0,3.78857992]
[1673685899246,0.00133912,21026.0,21025.0,3.31295592]
[1673685899730,0.00133912,21026.0,21025.0,3.085552]
[1673685899972,0.00133912,21026.0,21025.0,3.36453686]
[1673685900224,0.18117891,21026.0,21025.0,2.134304]
[1673685900466,0.18117891,21026.0,21025.0,0.34696547]
[1673685900467,0.00133912,21026.0,21025.0,0.34696547]
[1673685900710,0.00133912,21026.0,21023.0,0.61570286]
[1673685900950,0.1076,21025.0,21024.0,0.13431]
[1673685901196,0.10772333,21025.0,21023.0,0.21583465]
[1673685901440,0.1076,21025.0,21024.0,0.134312]
[1673685901921,0.1076,21025.0,21023.0,0.21577465]
[1673685902414,0.2266,21024.0,21020.0,0.13998486]
[1673685902653,0.2266,21024.0,21021.0,0.25659865]
[1673685902654,0.1134,21022.0,21021.0,0.25659865]
[1673685902896,0.72688546,21022.0,21019.0,0.18892088]
[1673685903159,0.320869,21021.0,21019.0,0.18892088]
[1673685903400,0.17971646,21022.0,21021.0,0.21492941]
[1673685903795,0.11402333,21022.0,21021.0,0.36741806]
[1673685904056,0.11302333,21022.0,21021.0,0.22741806]
[1673685904294,0.43389233,21022.0,21019.0,0.141]
[1673685904541,0.1132,21020.0,21019.0,0.21447624]
[1673685904790,0.1124,21020.0,21019.0,0.21447624]
[1673685905032,0.1124,21020.0,21019.0,0.20689714]
[1673685905288,0.1124,21020.0,21019.0,0.34689714]
[1673685906056,0.1124,21020.0,21019.0,0.20689714]
[1673685906300,0.1134,21020.0,21019.0,0.34689714]
[1673685906565,0.1134,21020.0,21017.0,0.82575315]
[1673685906566,0.1124,21020.0,21017.0,0.82575315]
[1673685906778,0.2266,21018.0,21017.0,0.71236187]
[1673685907058,0.2266,21018.0,21017.0,0.22897087]
[1673685907820,0.2266,21018.0,21017.0,0.36897087]
[1673685907821,0.2276,21018.0,21017.0,0.36897087]
[1673685908560,0.2276,21018.0,21017.0,0.14]
[1673685908806,0.1144,21018.0,21017.0,0.39845914]
[1673685909527,0.1134,21018.0,21017.0,0.14]
[1673685909779,0.75610452,21018.0,21015.0,0.69500593]
[1673685910026,0.080343,21017.0,21016.0,0.26371917]
[1673685910284,0.1134,21017.0,21016.0,0.26371917]
[1673685910529,0.1134,21017.0,21014.0,0.43070084]
[1673685910530,0.2268,21017.0,21014.0,0.43070084]
[1673685910783,0.2267,21015.0,21014.0,0.43070084]
[1673685911315,0.2267,21015.0,21014.0,0.20255944]
[1673685911316,0.3401,21015.0,21014.0,0.20255944]
[1673685911558,0.547569,21015.0,21014.0,0.45653302]
[1673685912074,0.547569,21015.0,21014.0,0.20255944]
[1673685912075,0.2267,21015.0,21014.0,0.20255944]
[1673685912572,0.49761786,21015.0,21014.0,0.20255944]
[1673685912822,0.81848686,21015.0,21014.0,0.20255944]
[1673685913066,0.91848686,21015.0,21014.0,0.20255944]
[1673685913322,0.81848686,21015.0,21014.0,0.20255944]
[1673685914101,1.260419,21015.0,21014.0,0.20255944]
[1673685914360,1.73039553,21015.0,21014.0,0.20255944]
[1673685914624,1.49918963,21015.0,21014.0,0.20255944]
[1673685915401,1.48078922,21015.0,21014.0,0.20255944]
[1673685915686,0.79153922,21015.0,21014.0,0.20255944]
[1673685916154,0.47067022,21015.0,21014.0,0.20255944]
[1673685916413,0.79153922,21015.0,21014.0,0.20255944]
[1673685916906,0.47067022,21015.0,21014.0,0.20255944]
[1673685917154,0.79153922,21015.0,21014.0,0.20255944]
[1673685918430,0.79153922,21015.0,21014.0,0.20229304]
[1673685919703,0.90403922,21015.0,21014.0,0.20229304]
[1673685920462,1.37988922,21015.0,21014.0,0.20229304]
[1673685921467,1.42509102,21015.0,21014.0,0.20229304]
[1673685921713,1.3988826,21015.0,21014.0,0.20229304]
[1673685922966,0.1365,21015.0,21014.0,0.46555384]
[1673685923459,0.1365,21015.0,21014.0,0.59916284]
[1673685923720,0.019,21015.0,21014.0,1.07503584]
[1673685923960,0.019,21015.0,21014.0,0.94142684]
[1673685924461,0.019,21015.0,21014.0,1.07503584]
[1673685924707,0.019,21015.0,21014.0,0.94142684]
[1673685925212,0.019,21015.0,21014.0,0.46555384]
[1673685925457,0.62275823,21015.0,21014.0,0.20342804]
[1673685926740,0.94362723,21015.0,21014.0,0.20342804]
[1673685926985,0.94362723,21015.0,21014.0,0.00369444]
[1673685927741,1.174919,21015.0,21014.0,0.00369444]
[1673685927990,1.387219,21015.0,21014.0,0.00369444]
[1673685928493,1.64791283,21015.0,21014.0,0.00369444]
[1673685929766,1.387219,21015.0,21014.0,0.00369444]
[1673685931036,1.60112914,21015.0,21014.0,0.00369444]
[1673685931285,1.387219,21015.0,21014.0,0.00369444]
[1673685931811,1.58883393,21015.0,21014.0,0.00369444]
[1673685932054,1.48883393,21015.0,21014.0,0.00369444]
[1673685932302,1.37543393,21015.0,21014.0,0.00369444]
[1673685932550,0.54148393,21015.0,21014.0,0.00369444]
[1673685932797,0.1458,21015.0,21014.0,0.00369444]
[1673685933286,0.1458,21015.0,21014.0,0.23205575]
[1673685933531,0.40471523,21015.0,21014.0,0.00369444]
[1673685933787,0.72558423,21015.0,21014.0,0.00369444]
[1673685934784,1.20143423,21015.0,21014.0,0.00369444]
[1673685935286,0.72558423,21015.0,21014.0,0.00369444]
[1673685935566,0.72558423,21015.0,21014.0,0.01369444]
[1673685935567,0.59878423,21015.0,21014.0,0.01369444]
[1673685935816,0.27791523,21015.0,21014.0,0.01369444]
[1673685936063,0.339869,21015.0,21014.0,0.01369444]
[1673685936306,0.019,21015.0,21014.0,0.01369444]
[1673685936564,0.019,21015.0,21014.0,0.21227761]
[1673685937558,0.019,21015.0,21014.0,0.01369444]
[1673685937817,0.019,21015.0,21014.0,0.39984059]
[1673685938072,0.019,21015.0,21014.0,0.27054059]
[1673685939057,0.019,21015.0,21014.0,1.00417947]
[1673685939301,0.019,21015.0,21014.0,0.88487644]
[1673685939553,0.019,21015.0,21014.0,1.39850672]
[1673685939802,0.019,21015.0,21014.0,1.38520271]
[1673685940071,0.019,21015.0,21014.0,0.75247644]
[1673685940337,0.019,21015.0,21014.0,1.2924613]
[1673685940582,0.019,21015.0,21014.0,1.36245373]
[1673685940853,0.019,21015.0,21014.0,2.78509031]
[1673685941100,0.019,21015.0,21014.0,2.52487539]
[1673685941343,0.01897486,21022.0,21014.0,2.5563862]
[1673685941608,0.01897486,21022.0,21018.0,0.35163343]
[1673685941609,0.22062732,21021.0,21018.0,0.35163343]
[1673685941863,0.22062732,21021.0,21019.0,0.133566]
[1673685942105,0.01897486,21022.0,21017.0,0.14065337]
[1673685942106,0.26713569,21019.0,21017.0,0.14065337]
[1673685942353,0.38033569,21019.0,21017.0,0.14065337]
[1673685942600,0.38033569,21019.0,21016.0,0.82745243]
[1673685942847,0.23949431,21018.0,21016.0,0.35163343]
[1673685943084,0.23949431,21018.0,21016.0,0.14065337]
[1673685943341,0.23949431,21018.0,21017.0,0.133575]
[1673685943591,0.23949431,21018.0,21017.0,0.273575]
[1673685944093,0.23949431,21018.0,21017.0,0.14]
[1673685944836,0.1132,21019.0,21017.0,0.14]
[1673685945096,0.1132,21019.0,21017.0,0.39703569]
[1673685945357,0.43330851,21021.0,21017.0,0.39803569]
[1673685945612,0.1132,21019.0,21017.0,0.44776164]
[1673685945857,0.1132,21019.0,21018.0,0.22919518]
[1673685946891,0.1132,21021.0,21018.0,0.71440261]
[1673685947132,0.1132,21021.0,21019.0,0.133563]
[1673685947371,0.1132,21021.0,21019.0,0.14065337]
[1673685947645,0.13217486,21022.0,21019.0,0.14065337]
[1673685948393,0.13190846,21022.0,21019.0,0.14065337]
[1673685948647,0.13190846,21022.0,21020.0,0.21686192]
[1673685949645,0.01870846,21022.0,21021.0,0.233548]
[1673685949882,0.01870846,21022.0,21021.0,0.37420137]
[1673685950130,0.01870846,21022.0,21021.0,0.84991537]
[1673685950374,0.01870846,21022.0,21021.0,0.709262]
[1673685950627,0.01870846,21022.0,21021.0,0.609262]
[1673685950880,0.01870846,21022.0,21020.0,0.94256135]
[1673685950881,0.39582356,21022.0,21020.0,0.35783035]
[1673685951116,0.1132,21021.0,21020.0,0.35617698]
[1673685951380,0.1132,21021.0,21020.0,0.21717698]
[1673685951631,0.32060315,21021.0,21018.0,0.8265018]
[1673685951875,0.32060315,21021.0,21018.0,0.68584843]
[1673685951876,0.1125,21020.0,21018.0,0.68584843]
[1673685952129,0.1125,21020.0,21018.0,0.21008143]
[1673685952627,0.1125,21020.0,21019.0,0.133558]
[1673685952882,0.1125,21020.0,21018.0,0.21008143]
[1673685954667,0.34680445,21020.0,21016.0,0.82745943]
[1673685954917,0.34680445,21020.0,21016.0,0.25113933]
[1673685954918,0.1132,21017.0,21016.0,0.25113933]
[1673685955241,0.1132,21017.0,21016.0,0.1]
[1673685955449,0.1132,21017.0,21016.0,0.33295635]
[1673685955690,0.1132,21017.0,21016.0,0.19937235]
[1673685955943,0.17971646,21020.0,21017.0,0.19713223]